[Event "41st Jacques-Lemans-Open 2022"]
[Site "St. Veit/Glan"]
[Date "2022.07.15"]
[Round "8.28"]
[White "Wiedner, Robert"]
[Black "Enne, Harald"]
[Result "1/2-1/2"]
[ECO "A31"]
[WhiteElo "2133"]
[BlackElo "1919"]
[Annotator "ChessBase"]
[PlyCount "156"]
[EventDate "2022.07.09"]
[EventType "swiss"]
[EventCountry "AUT"]
[SourceTitle "playchess.com"]
[Source "ChessBase"]
[SourceQuality "1"]
[TimeControl "40/5400+30:1800+30"]

1. c4 {[%emt 0:00:05]} c5 {[%emt 0:00:10]} 2. Nf3 {[%emt 0:00:08]} Nf6 {[%emt 0:00:05]} 3. d4 {[%emt 0:00:06]} cxd4 {[%emt 0:01:26]} 4. Nxd4 {[%emt 0:00:07]} g6 {[%emt 0:00:14]} 5. Nc3 {[%emt 0:00:16]} Bg7 {[%emt 0:00:30]} 6. g3 {[%emt 0:01:03]} O-O {[%emt 0:02:15]} 7. Bg2 {[%emt 0:00:18]} Nc6 {[%emt 0:01:21]} 8. O-O {[%emt 0:00:10]} Nxd4 {[%emt 0:01:14]} 9. Qxd4 {[%emt 0:00:09]} d6 {[%emt 0:00:28]} 10. Qd2 {[%emt 0:01:24]} Rb8 {[%emt 0:02:24]} 11. b3 {[%emt 0:01:21]} b6 {[%emt 0:12:30]} 12. Bb2 {[%emt 0:00:56]} Bb7 {[%emt 0:00:24]} 13. e4 {[%emt 0:02:13]} a6 {[%emt 0:04:30]} 14. Rfe1 {[%emt 0:00:12]} Qc7 {[%emt 0:05:22]} 15. Re2 {[%emt 0:05:49]} Rfe8 {[%emt 0:11:06]} 16. h3 {[%emt 0:05:02]} Rbd8 {[%emt 0:08:38]} 17. Rd1 {[%emt 0:01:24]} Qb8 {[%emt 0:06:22]} 18. Qe3 {[%emt 0:00:50]} Ba8 {[%emt 0:08:26]} 19. Red2 {[%emt 0:02:53]} b5 {[%emt 0:03:44]} 20. cxb5 {[%emt 0:03:14]} axb5 {[%emt 0:00:06]} 21. b4 {[%emt 0:00:12]} Nd7 {[%emt 0:05:57]} 22. f4 {[%emt 0:01:24]} Nb6 {[%emt 0:04:27]} 23. Bf1 {[%emt 0:00:09]} Bc6 {[%emt 0:01:19]} 24. Nd5 {[%emt 0:03:45]} Bxb2 {[%emt 0:08:23]} 25. Rxb2 Nc4 26. Bxc4 {[%emt 0:03:07]} bxc4 {[%emt 0:00:31]} 27. Nc3 {[%emt 0:01:31]} Rc8 {[%emt 0:04:07]} 28. a4 {[%emt 0:00:29]} e6 {[%emt 0:01:10]} 29. b5 {[%emt 0:00:12]} d5 {[%emt 0:01:35]} 30. e5 {[%emt 0:00:28]} Ba8 {[%emt 0:01:07]} 31. Qd4 {[%emt 0:00:16]} Re7 {[%emt 0:01:15]} 32. b6 {[%emt 0:01:12]} Bb7 {[%emt 0:00:36]} 33. Kf2 {[%emt 0:03:36]} Rc6 {[%emt 0:00:09]} 34. a5 {[%emt 0:01:36]} Qa8 {[%emt 0:00:55]} 35. Rb5 {[%emt 0:00:48]} Re8 {[%emt 0:00:35]} 36. Ra1 {[%emt 0:00:42]} Ba6 {[%emt 0:00:21]} 37. Rb2 {[%emt 0:02:27]} Qb7 {[%emt 0:00:19]} 38. g4 {[%emt 0:00:55]} Qe7 {[%emt 0:00:38]} 39. Kg3 {[%emt 0:00:33]} Rb8 {[%emt 0:02:10]} 40. g5 {[%emt 0:01:38]} Rbc8 {[%emt 0:02:40]} 41. Kf3 {[%emt 0:30:31]} Rb8 {[%emt 0:30:34]} 42. h4 {[%emt 0:00:14]} Rb7 {[%emt 0:00:55]} 43. h5 {[%emt 0:00:20]} Qf8 {[%emt 0:00:00]} 44. h6 {[%emt 0:00:00]} Qe7 {[%emt 0:00:00]} 45. Ke3 {[%emt 0:00:00]} Rd7 {[%emt 0:00:00]} 46. Kd2 {[%emt 0:00:00]} Rc5 {[%emt 0:00:00]} 47. Kc2 {[%emt 0:00:00]} Rc6 {[%emt 0:00:00]} 48. Ra4 {[%emt 0:00:00]} Rb7 {[%emt 0:00:00]} 49. Nb5 {[%emt 0:00:00]} Rb8 {[%emt 0:00:00]} 50. Kc3 {[%emt 0:00:00]} Qb7 {[%emt 0:00:00]} 51. Rbb4 {[%emt 0:00:00]} Bxb5 {[%emt 0:00:00]} 52. Rxb5 {[%emt 0:00:00]} Qa6 {[%emt 0:00:00]} 53. Rab4 {[%emt 0:00:00]} Qb7 {[%emt 0:00:00]} 54. Rb2 {[%emt 0:00:00]} Rbc8 {[%emt 0:00:00]} 55. Rb1 {[%emt 0:00:00]} Kf8 {[%emt 0:00:00]} 56. Kc2 {[%emt 0:00:52]} Ke8 {[%emt 0:00:00]} 57. Qa1 {[%emt 0:00:17]} Ra8 {[%emt 0:00:00]} 58. Qa3 {[%emt 0:00:36]} Kd7 {[%emt 0:04:11]} 59. Kc3 {[%emt 0:01:06]} Ra6 {[%emt 0:00:41]} 60. Qb4 {[%emt 0:00:16]} Ra8 {[%emt 0:00:34]} 61. Ra1 {[%emt 0:00:44]} Ke8 {[%emt 0:00:18]} 62. Rc5 {[%emt 0:01:18]} d4+ {[%emt 0:00:52]} 63. Kxd4 {[%emt 0:00:40]} Rxc5 {[%emt 0:02:42]} 64. Qxc5 {[%emt 0:00:10]} Rd8+ {[%emt 0:00:05]} 65. Kxc4 {[%emt 0:02:28]} Qe4+ {[%emt 0:00:52]} 66. Kb3 {[%emt 0:02:00]} Rd3+ {[%emt 0:00:52]} 67. Kb2 {[%emt 0:00:00]} Rd2+ {[%emt 0:00:00]} 68. Kb3 {[%emt 0:00:00]} Rd3+ {[%emt 0:00:07]} 69. Kb2 {[%emt 0:00:00]} Rd2+ {[%emt 0:01:08]} 70. Kb3 {[%emt 0:00:08]} Rd3+ 71. Kb2 Qe2+ 72. Qc2 Rd2 73. Qxd2 Qxd2+ 74. Kb3 {[%emt 0:01:54]} Qd5+ 75. Kb2 Qb5+ 76. Kc2 Qc4+ 77. Kb2 Qd4+ 78. Kb1 Qb4+ 1/2-1/2

[Event "41st Jacques-Lemans-Open 2022"]
[Site "St. Veit/Glan"]
[Date "2022.07.15"]
[Round "8.29"]
[White "Guetz, Wolfgang"]
[Black "Zaytsev, Alexander"]
[Result "1/2-1/2"]
[ECO "B40"]
[WhiteElo "2034"]
[BlackElo "1963"]
[Annotator "ChessBase"]
[PlyCount "43"]
[EventDate "2022.07.09"]
[EventType "swiss"]
[EventCountry "AUT"]
[SourceTitle "playchess.com"]
[Source "ChessBase"]
[SourceQuality "1"]
[TimeControl "40/5400+30:1800+30"]

1. e4 {[%emt 0:00:01]} c5 {[%emt 0:00:00]} 2. Nf3 {[%emt 0:00:07]} e6 {[%emt 0:00:24]} 3. d4 {[%emt 0:00:06]} cxd4 {[%emt 0:00:15]} 4. Nxd4 {[%emt 0:00:07]} Nf6 {[%emt 0:00:07]} 5. Bd3 {[%emt 0:00:23]} Nc6 {[%emt 0:01:23]} 6. Nxc6 {[%emt 0:00:19]} bxc6 {[%emt 0:00:15]} 7. O-O {[%emt 0:00:36]} d5 {[%emt 0:00:35]} 8. e5 {[%emt 0:00:14]} Nd7 {[%emt 0:00:17]} 9. Re1 {[%emt 0:00:32]} Qc7 {[%emt 0:13:41]} 10. Bf4 {[%emt 0:01:05]} a5 {[%emt 0:06:19]} 11. Nd2 {[%emt 0:08:16]} Ba6 {[%emt 0:05:16]} 12. Bxa6 {[%emt 0:00:41]} Rxa6 {[%emt 0:00:02]} 13. h4 {[%emt 0:12:25]} Rb6 {[%emt 0:06:43]} 14. Rb1 {[%emt 0:01:43]} Rb4 {[%emt 0:04:05]} 15. Bg3 {[%emt 0:05:39]} Be7 {[%emt 0:15:39]} 16. c3 {[%emt 0:08:32]} Rb7 {[%emt 0:00:22]} 17. Qg4 {[%emt 0:11:37]} O-O {[%emt 0:02:12]} 18. Nf3 {[%emt 0:06:57]} Nc5 {[%emt 0:03:57]} 19. Bf4 {[%emt 0:11:48]} Rfb8 {[%emt 0:11:13]} 20. Bh6 {[%emt 0:02:05]} Bf8 {[%emt 0:01:15]} 21. b3 {[%emt 0:10:11]} Kh8 {[%emt 0:03:24]} 22. Bg5 {[%emt 0:01:21]} 1/2-1/2

[Event "41st Jacques-Lemans-Open 2022"]
[Site "St. Veit/Glan"]
[Date "2022.07.15"]
[Round "8.30"]
[White "Holzleithner, Johannes"]
[Black "Rempe, Jonas"]
[Result "1-0"]
[ECO "E67"]
[WhiteElo "2022"]
[BlackElo "1861"]
[Annotator "ChessBase"]
[PlyCount "59"]
[EventDate "2022.07.09"]
[EventType "swiss"]
[EventCountry "AUT"]
[SourceTitle "playchess.com"]
[Source "ChessBase"]
[SourceQuality "1"]
[TimeControl "40/5400+30:1800+30"]

1. d4 {[%emt 0:00:06]} Nf6 {[%emt 0:00:07]} 2. c4 {[%emt 0:00:05]} g6 {[%emt 0:00:05]} 3. g3 {[%emt 0:00:04]} Bg7 {[%emt 0:00:04]} 4. Bg2 {[%emt 0:00:04]} O-O {[%emt 0:00:05]} 5. Nc3 {[%emt 0:00:03]} d6 {[%emt 0:00:04]} 6. Nf3 {[%emt 0:00:04]} Nbd7 {[%emt 0:00:04]} 7. O-O {[%emt 0:01:18]} c6 {[%emt 0:00:02]} 8. h3 {[%emt 0:01:09]} e5 {[%emt 0:04:39]} 9. e4 {[%emt 0:00:36]} Qb6 {[%emt 0:03:07]} 10. Re1 {[%emt 0:01:15]} exd4 {[%emt 0:14:02]} 11. Nxd4 {[%emt 0:00:13]} Re8 {[%emt 0:00:14]} 12. Nc2 {[%emt 0:03:03]} Nc5 {[%emt 0:07:06]} 13. b4 {[%emt 0:02:34]} Ne6 {[%emt 0:11:33]} 14. Be3 {[%emt 0:00:42]} Qc7 {[%emt 0:03:28]} 15. Qd2 {[%emt 0:00:06]} b6 {[%emt 0:09:27]} 16. Rad1 {[%emt 0:04:25]} Rd8 {[%emt 0:00:25]} 17. f4 {[%emt 0:06:22]} Bb7 {[%emt 0:02:25]} 18. Kh2 {[%emt 0:11:58]} d5 {[%emt 0:09:09]} 19. cxd5 {[%emt 0:06:59]} cxd5 {[%emt 0:00:11]} 20. exd5 {[%emt 0:10:46]} Ng4+ {[%emt 0:02:44]} 21. hxg4 {[%emt 0:01:07]} Bxc3 {[%emt 0:00:05]} 22. d6 {[%emt 0:03:29]} Qc4 {[%emt 0:07:44]} 23. Qe2 {[%emt 0:05:55]} Qxe2 {[%emt 0:05:38]} 24. Rxe2 Ba6 25. Rf2 {[%emt 0:05:39]} Rac8 {[%emt 0:00:32]} 26. a4 {[%emt 0:05:14]} Bc4 {[%emt 0:03:21]} 27. f5 {[%emt 0:04:37]} Ng7 {[%emt 0:01:48]} 28. b5 {[%emt 0:08:46]} Bb3 {[%emt 0:01:08]} 29. d7 {[%emt 0:05:29]} Rc4 {[%emt 0:03:52]} 30. Bg5 {[%emt 0:01:13]} 1-0

[Event "41st Jacques-Lemans-Open 2022"]
[Site "St. Veit/Glan"]
[Date "2022.07.15"]
[Round "8.31"]
[White "Praxmarer, Christian"]
[Black "Toefferl, Heimo"]
[Result "1/2-1/2"]
[ECO "A01"]
[WhiteElo "1906"]
[BlackElo "2003"]
[Annotator "ChessBase"]
[PlyCount "65"]
[EventDate "2022.07.09"]
[EventType "swiss"]
[EventCountry "AUT"]
[SourceTitle "playchess.com"]
[Source "ChessBase"]
[SourceQuality "1"]
[TimeControl "40/5400+30:1800+30"]

1. b3 {[%emt 0:00:09]} e5 {[%emt 0:00:41]} 2. Bb2 {[%emt 0:00:08]} Nc6 {[%emt 0:00:11]} 3. e3 {[%emt 0:00:37]} Nh6 {[%emt 0:01:12]} 4. Bb5 {[%emt 0:05:12]} d6 {[%emt 0:00:33]} 5. Nc3 {[%emt 0:02:44]} a6 {[%emt 0:02:01]} 6. Bc4 {[%emt 0:03:59]} Be7 {[%emt 0:01:17]} 7. Nge2 {[%emt 0:00:50]} O-O {[%emt 0:00:38]} 8. Ng3 {[%emt 0:01:24]} Be6 {[%emt 0:01:41]} 9. O-O {[%emt 0:00:50]} d5 {[%emt 0:01:00]} 10. Be2 {[%emt 0:00:02]} f5 {[%emt 0:02:03]} 11. f4 {[%emt 0:00:22]} d4 {[%emt 0:03:23]} 12. Nb1 {[%emt 0:06:20]} e4 {[%emt 0:03:47]} 13. Ba3 {[%emt 0:16:13]} b5 {[%emt 0:00:43]} 14. Bxe7 {[%emt 0:00:38]} Nxe7 {[%emt 0:00:11]} 15. Qc1 {[%emt 0:03:22]} c5 {[%emt 0:08:38]} 16. d3 {[%emt 0:02:43]} Bd5 {[%emt 0:02:55]} 17. dxe4 {[%emt 0:07:00]} fxe4 {[%emt 0:03:04]} 18. Nd2 {[%emt 0:06:18]} Nef5 {[%emt 0:03:40]} 19. Ndxe4 {[%emt 0:00:49]} Nxe3 {[%emt 0:00:34]} 20. Rf2 {[%emt 0:00:27]} Nhg4 {[%emt 0:03:48]} 21. Bxg4 {[%emt 0:05:52]} Nxg4 {[%emt 0:03:40]} 22. Re2 {[%emt 0:00:29]} Qh4 {[%emt 0:02:14]} 23. h3 {[%emt 0:01:10]} Ne3 {[%emt 0:02:35]} 24. Qe1 {[%emt 0:01:16]} Rae8 {[%emt 0:04:58]} 25. Nd6 {[%emt 0:10:08]} Nxc2 {[%emt 0:04:29]} 26. Ngf5 {[%emt 0:10:16]} Nxe1 {[%emt 0:00:47]} 27. Rxe8 {[%emt 0:00:38]} Nf3+ {[%emt 0:06:39]} 28. gxf3 {[%emt 0:00:28]} Qxf4 {[%emt 0:02:56]} 29. Rae1 {[%emt 0:01:53]} h6 {[%emt 0:08:56]} 30. Rxf8+ {[%emt 0:00:24]} Kh7 {[%emt 0:00:13]} 31. Re7 {[%emt 0:03:12]} Qc1+ {[%emt 0:07:32]} 32. Kf2 {[%emt 0:00:25]} Qd2+ {[%emt 0:00:28]} 33. Kg3 {[%emt 0:03:27]} 1/2-1/2

[Event "41st Jacques-Lemans-Open 2022"]
[Site "St. Veit/Glan"]
[Date "2022.07.15"]
[Round "8.32"]
[White "Katter, Katharina"]
[Black "Bajorski, Marius"]
[Result "0-1"]
[ECO "D55"]
[WhiteElo "2000"]
[BlackElo "1870"]
[Annotator "ChessBase"]
[PlyCount "64"]
[EventDate "2022.07.09"]
[EventType "swiss"]
[EventCountry "AUT"]
[SourceTitle "playchess.com"]
[Source "ChessBase"]
[SourceQuality "1"]
[TimeControl "40/5400+30:1800+30"]

1. d4 {[%emt 0:00:03]} d5 {[%emt 0:00:04]} 2. Nf3 {[%emt 0:00:15]} Nf6 {[%emt 0:00:04]} 3. c4 {[%emt 0:00:10]} e6 {[%emt 0:00:03]} 4. Nc3 {[%emt 0:00:23]} Be7 {[%emt 0:00:25]} 5. Bg5 {[%emt 0:00:33]} O-O {[%emt 0:00:19]} 6. e3 {[%emt 0:00:19]} h6 {[%emt 0:00:17]} 7. Bxf6 {[%emt 0:00:19]} Bxf6 {[%emt 0:00:03]} 8. Qc2 {[%emt 0:00:15]} c5 {[%emt 0:01:13]} 9. dxc5 {[%emt 0:00:32]} Qa5 {[%emt 0:05:31]} 10. cxd5 {[%emt 0:00:11]} exd5 {[%emt 0:00:39]} 11. O-O-O {[%emt 0:00:33]} Bxc3 {[%emt 0:01:31]} 12. Qxc3 {[%emt 0:04:34]} Qxa2 {[%emt 0:05:54]} 13. Bb5 {[%emt 0:09:31]} Bd7 {[%emt 0:04:44]} 14. Nd4 {[%emt 0:03:40]} Rc8 {[%emt 0:18:23]} 15. Bxd7 {[%emt 0:34:15]} Nxd7 {[%emt 0:02:19]} 16. b4 {[%emt 0:02:18]} g6 {[%emt 0:19:50]} 17. Rd2 {[%emt 0:05:39]} Qa6 {[%emt 0:04:56]} 18. h4 {[%emt 0:06:00]} Qf6 {[%emt 0:10:51]} 19. g4 {[%emt 0:05:15]} a5 {[%emt 0:02:22]} 20. g5 {[%emt 0:07:44]} axb4 {[%emt 0:01:14]} 21. Qxb4 {[%emt 0:03:04]} Qe5 {[%emt 0:04:59]} 22. Rb2 {[%emt 0:04:36]} Nxc5 {[%emt 0:00:35]} 23. Kd2 {[%emt 0:00:28]} Nd3 {[%emt 0:02:27]} 24. Kxd3 {[%emt 0:01:12]} Qe4+ {[%emt 0:00:04]} 25. Ke2 {[%emt 0:00:49]} Qxh1 {[%emt 0:00:11]} 26. Qxb7 {[%emt 0:03:18]} hxg5 {[%emt 0:01:30]} 27. Nc6 {[%emt 0:01:24]} Re8 {[%emt 0:03:44]} 28. Ne5 {[%emt 0:04:18]} Rf8 {[%emt 0:01:50]} 29. Nxf7 {[%emt 0:00:06]} Ra1 {[%emt 0:05:18]} 30. Nh6+ {[%emt 0:00:05]} Kh8 {[%emt 0:00:03]} 31. Nf7+ {[%emt 0:00:10]} Rxf7 {[%emt 0:00:19]} 32. Qb8+ {[%emt 0:00:13]} Kh7 {[%emt 0:00:27]} 0-1

[Event "41st Jacques-Lemans-Open 2022"]
[Site "St. Veit/Glan"]
[Date "2022.07.15"]
[Round "8.33"]
[White "Hng, Mei-En Emmanuelle"]
[Black "Burbach, Brunel Baron"]
[Result "1-0"]
[ECO "B21"]
[WhiteElo "1997"]
[BlackElo "1820"]
[Annotator "ChessBase"]
[PlyCount "55"]
[EventDate "2022.07.09"]
[EventType "swiss"]
[EventCountry "AUT"]
[SourceTitle "playchess.com"]
[Source "ChessBase"]
[SourceQuality "1"]
[TimeControl "40/5400+30:1800+30"]

1. e4 {[%emt 0:00:06]} c5 {[%emt 0:00:05]} 2. d4 {[%emt 0:00:18]} cxd4 {[%emt 0:00:05]} 3. c3 {[%emt 0:00:05]} dxc3 {[%emt 0:00:57]} 4. Nxc3 {[%emt 0:00:02]} Nc6 {[%emt 0:00:32]} 5. Bc4 {[%emt 0:00:21]} d6 {[%emt 0:01:11]} 6. Nf3 {[%emt 0:00:33]} a6 {[%emt 0:00:35]} 7. O-O {[%emt 0:00:49]} Nf6 {[%emt 0:00:46]} 8. h3 {[%emt 0:01:23]} e6 {[%emt 0:01:53]} 9. Qe2 {[%emt 0:00:12]} Be7 {[%emt 0:05:46]} 10. Rd1 {[%emt 0:01:20]} Qc7 {[%emt 0:05:58]} 11. Bf4 {[%emt 0:01:35]} Ne5 {[%emt 0:01:21]} 12. Bb3 {[%emt 0:02:39]} O-O {[%emt 0:04:21]} 13. Rac1 {[%emt 0:05:18]} Qb8 {[%emt 0:00:27]} 14. Nd4 {[%emt 0:22:47]} Bd7 {[%emt 0:21:23]} 15. Bg3 {[%emt 0:04:08]} Rc8 {[%emt 0:14:30]} 16. f4 {[%emt 0:03:30]} Nc6 {[%emt 0:04:59]} 17. Kh2 {[%emt 0:10:07]} Nxd4 {[%emt 0:07:21]} 18. Rxd4 {[%emt 0:00:03]} Bc6 {[%emt 0:01:57]} 19. Rcd1 {[%emt 0:07:15]} b5 {[%emt 0:06:58]} 20. e5 {[%emt 0:05:31]} dxe5 {[%emt 0:02:17]} 21. fxe5 {[%emt 0:00:09]} Ne8 {[%emt 0:00:27]} 22. Rf1 {[%emt 0:11:57]} Nc7 {[%emt 0:04:20]} 23. Qh5 {[%emt 0:06:46]} g6 {[%emt 0:00:48]} 24. Qh6 {[%emt 0:00:35]} Bf8 {[%emt 0:00:51]} 25. Qf4 {[%emt 0:00:08]} Be8 {[%emt 0:00:23]} 26. Ne4 {[%emt 0:02:06]} Bg7 {[%emt 0:07:03]} 27. Nf6+ {[%emt 0:00:20]} Bxf6 {[%emt 0:00:13]} 28. exf6 {[%emt 0:00:47]} 1-0

[Event "41st Jacques-Lemans-Open 2022"]
[Site "St. Veit/Glan"]
[Date "2022.07.15"]
[Round "8.34"]
[White "Missethan, Michael"]
[Black "Stadlinger, Lea"]
[Result "1/2-1/2"]
[ECO "C45"]
[WhiteElo "1991"]
[BlackElo "1723"]
[Annotator "ChessBase"]
[PlyCount "106"]
[EventDate "2022.07.09"]
[EventType "swiss"]
[EventCountry "AUT"]
[SourceTitle "playchess.com"]
[Source "ChessBase"]
[SourceQuality "1"]
[TimeControl "40/5400+30:1800+30"]

1. e4 {[%emt 0:00:02]} e5 {[%emt 0:00:06]} 2. Nf3 {[%emt 0:00:05]} Nc6 {[%emt 0:00:07]} 3. d4 {[%emt 0:00:04]} exd4 {[%emt 0:00:11]} 4. Nxd4 {[%emt 0:00:04]} Nf6 {[%emt 0:02:20]} 5. Nxc6 {[%emt 0:00:26]} bxc6 {[%emt 0:00:14]} 6. e5 {[%emt 0:00:10]} Nd5 {[%emt 0:02:52]} 7. c4 {[%emt 0:01:37]} Bb4+ {[%emt 0:02:00]} 8. Nd2 {[%emt 0:06:03]} Nb6 {[%emt 0:02:40]} 9. a3 {[%emt 0:04:11]} Be7 {[%emt 0:02:50]} 10. Bd3 {[%emt 0:09:10]} d5 {[%emt 0:05:23]} 11. O-O {[%emt 0:04:22]} O-O {[%emt 0:02:50]} 12. b4 {[%emt 0:05:56]} c5 {[%emt 0:08:24]} 13. b5 {[%emt 0:08:35]} Bb7 {[%emt 0:10:56]} 14. cxd5 {[%emt 0:12:37]} Bxd5 {[%emt 0:05:26]} 15. Qc2 {[%emt 0:01:06]} h6 {[%emt 0:02:00]} 16. Bb2 {[%emt 0:01:47]} c6 {[%emt 0:03:02]} 17. bxc6 {[%emt 0:02:46]} Bxc6 {[%emt 0:00:13]} 18. Bh7+ {[%emt 0:10:48]} Kh8 {[%emt 0:01:18]} 19. Be4 {[%emt 0:00:22]} Qc7 {[%emt 0:02:52]} 20. f4 {[%emt 0:02:16]} Na4 {[%emt 0:08:14]} 21. Bc1 {[%emt 0:02:04]} Rac8 {[%emt 0:07:28]} 22. Nc4 {[%emt 0:01:41]} Bxe4 {[%emt 0:03:44]} 23. Qxe4 {[%emt 0:00:01]} Qc6 {[%emt 0:03:58]} 24. Qc2 {[%emt 0:02:04]} Nb6 {[%emt 0:01:37]} 25. Bb2 {[%emt 0:03:08]} Nxc4 {[%emt 0:02:06]} 26. Qxc4 {[%emt 0:00:01]} f6 {[%emt 0:01:17]} 27. e6 {[%emt 0:02:08]} f5 {[%emt 0:01:24]} 28. Rfe1 {[%emt 0:05:00]} Rce8 {[%emt 0:05:25]} 29. Rac1 {[%emt 0:03:15]} Bf6 {[%emt 0:03:52]} 30. Bxf6 {[%emt 0:01:06]} Rxf6 {[%emt 0:00:05]} 31. e7 {[%emt 0:01:34]} g6 {[%emt 0:04:48]} 32. Qxc5 {[%emt 0:01:32]} Qxc5+ {[%emt 0:00:45]} 33. Rxc5 {[%emt 0:00:01]} Kg7 {[%emt 0:04:09]} 34. Rc7 {[%emt 0:02:44]} Ra6 {[%emt 0:00:46]} 35. Re3 {[%emt 0:00:24]} Kf7 {[%emt 0:00:08]} 36. Kf2 {[%emt 0:00:44]} Kg7 {[%emt 0:01:24]} 37. Rb3 {[%emt 0:04:20]} Kf7 {[%emt 0:00:21]} 38. Re3 {[%emt 0:00:28]} Kg7 {[%emt 0:00:08]} 39. Ke2 {[%emt 0:00:51]} Kf7 {[%emt 0:00:49]} 40. g3 {[%emt 0:00:48]} Kg7 {[%emt 0:00:56]} 41. h3 {[%emt 0:04:51]} Kf6 {[%emt 0:04:38]} 42. Kf3 {[%emt 0:14:36]} g5 {[%emt 0:04:57]} 43. fxg5+ {[%emt 0:02:36]} hxg5 {[%emt 0:00:56]} 44. h4 {[%emt 0:03:27]} gxh4 {[%emt 0:01:41]} 45. gxh4 {[%emt 0:00:01]} Ra4 {[%emt 0:03:25]} 46. h5 {[%emt 0:03:22]} Rh4 {[%emt 0:14:05]} 47. Rxa7 {[%emt 0:02:24]} Rxh5 {[%emt 0:00:51]} 48. Re1 {[%emt 0:04:40]} Rh3+ {[%emt 0:03:58]} 49. Kf4 {[%emt 0:00:20]} Rh4+ {[%emt 0:00:16]} 50. Kg3 {[%emt 0:00:23]} Re4 {[%emt 0:00:19]} 51. Rxe4 {[%emt 0:01:46]} fxe4 {[%emt 0:00:05]} 52. a4 {[%emt 0:00:57]} Rxe7 {[%emt 0:00:12]} 53. Rxe7 {[%emt 0:00:18]} Kxe7 {[%emt 0:00:06]} 1/2-1/2

[Event "41st Jacques-Lemans-Open 2022"]
[Site "St. Veit/Glan"]
[Date "2022.07.15"]
[Round "8.35"]
[White "Gruenwald, Simon"]
[Black "Stadlinger, Matthias"]
[Result "1/2-1/2"]
[ECO "B07"]
[WhiteElo "1762"]
[BlackElo "1975"]
[Annotator "ChessBase"]
[PlyCount "32"]
[EventDate "2022.07.09"]
[EventType "swiss"]
[EventCountry "AUT"]
[SourceTitle "playchess.com"]
[Source "ChessBase"]
[SourceQuality "1"]
[TimeControl "40/5400+30:1800+30"]

1. e4 {[%emt 0:00:10]} d6 {[%emt 0:00:06]} 2. d4 {[%emt 0:00:41]} Nf6 {[%emt 0:00:03]} 3. Nc3 {[%emt 0:00:30]} Nbd7 {[%emt 0:00:04]} 4. Nf3 {[%emt 0:01:32]} e5 {[%emt 0:00:16]} 5. dxe5 {[%emt 0:00:28]} dxe5 {[%emt 0:00:07]} 6. Bc4 {[%emt 0:00:27]} Be7 {[%emt 0:05:53]} 7. Bg5 {[%emt 0:07:51]} c6 {[%emt 0:00:08]} 8. O-O {[%emt 0:03:36]} O-O {[%emt 0:03:46]} 9. Qe2 {[%emt 0:01:12]} b5 {[%emt 0:01:34]} 10. Bb3 {[%emt 0:01:15]} a5 {[%emt 0:00:34]} 11. a3 {[%emt 0:00:34]} Qc7 {[%emt 0:01:32]} 12. Bh4 {[%emt 0:05:39]} Nc5 {[%emt 0:07:24]} 13. Bg3 {[%emt 0:01:10]} Bg4 {[%emt 0:12:15]} 14. Bxe5 {[%emt 0:05:10]} Bxf3 {[%emt 0:05:40]} 15. Bxc7 {[%emt 0:00:20]} Bxe2 {[%emt 0:00:04]} 16. Nxe2 {[%emt 0:00:07]} Nxb3 {[%emt 0:11:32]} 1/2-1/2

[Event "41st Jacques-Lemans-Open 2022"]
[Site "St. Veit/Glan"]
[Date "2022.07.15"]
[Round "8.36"]
[White "Ljubic, Luka"]
[Black "Tonel, Giulia"]
[Result "1-0"]
[ECO "A49"]
[WhiteElo "1768"]
[BlackElo "1969"]
[Annotator "ChessBase"]
[PlyCount "71"]
[EventDate "2022.07.09"]
[EventType "swiss"]
[EventCountry "AUT"]
[SourceTitle "playchess.com"]
[Source "ChessBase"]
[SourceQuality "1"]
[TimeControl "40/5400+30:1800+30"]

1. d4 {[%emt 0:00:05]} g6 {[%emt 0:00:44]} 2. Nf3 {[%emt 0:00:47]} Nf6 {[%emt 0:00:16]} 3. g3 {[%emt 0:00:09]} Bg7 {[%emt 0:00:13]} 4. Bg2 {[%emt 0:00:07]} c5 {[%emt 0:07:55]} 5. O-O {[%emt 0:06:46]} cxd4 {[%emt 0:01:28]} 6. Nxd4 {[%emt 0:00:09]} O-O {[%emt 0:01:08]} 7. c4 {[%emt 0:03:11]} Qc7 {[%emt 0:06:19]} 8. Nb5 {[%emt 0:07:37]} Qd8 {[%emt 0:10:01]} 9. N1c3 {[%emt 0:14:07]} a6 {[%emt 0:03:08]} 10. Qa4 {[%emt 0:14:44]} d6 {[%emt 0:02:47]} 11. Nd4 {[%emt 0:08:15]} Nbd7 {[%emt 0:08:14]} 12. Rd1 {[%emt 0:02:15]} Rb8 {[%emt 0:04:40]} 13. Qc2 {[%emt 0:06:27]} Qc7 {[%emt 0:13:27]} 14. b3 {[%emt 0:05:50]} e5 {[%emt 0:05:24]} 15. Nf3 {[%emt 0:00:52]} b5 {[%emt 0:01:12]} 16. cxb5 {[%emt 0:08:33]} axb5 {[%emt 0:00:23]} 17. Qd2 {[%emt 0:01:28]} b4 {[%emt 0:05:15]} 18. Na4 {[%emt 0:02:18]} d5 {[%emt 0:07:55]} 19. Bb2 {[%emt 0:01:31]} d4 {[%emt 0:03:19]} 20. Rac1 {[%emt 0:01:30]} Qa5 {[%emt 0:01:05]} 21. a3 {[%emt 0:03:49]} Ne4 {[%emt 0:00:59]} 22. Qe1 {[%emt 0:00:09]} f5 {[%emt 0:07:53]} 23. axb4 {[%emt 0:01:21]} Qxb4 {[%emt 0:00:49]} 24. Qxb4 {[%emt 0:00:18]} Rxb4 {[%emt 0:00:16]} 25. Ba3 {[%emt 0:00:04]} Rb8 {[%emt 0:00:26]} 26. Bxf8 {[%emt 0:00:13]} Bxf8 {[%emt 0:00:11]} 27. Nd2 {[%emt 0:02:58]} Nxd2 {[%emt 0:01:32]} 28. Rxd2 {[%emt 0:00:07]} Bh6 {[%emt 0:00:08]} 29. f4 {[%emt 0:00:26]} Kf8 {[%emt 0:00:10]} 30. Rc7 {[%emt 0:03:12]} Ke8 {[%emt 0:01:04]} 31. Rdc2 {[%emt 0:00:36]} Ba6 {[%emt 0:00:26]} 32. Bc6 {[%emt 0:01:03]} Bb5 {[%emt 0:01:07]} 33. Rxd7 {[%emt 0:00:34]} Bxc6 {[%emt 0:00:14]} 34. Rxh7 {[%emt 0:00:06]} Be4 {[%emt 0:00:32]} 35. Rxh6 {[%emt 0:00:53]} Rxb3 {[%emt 0:00:29]} 36. Rc7 {[%emt 0:00:19]} 1-0